[Event "3rd Rio Open 2024"]
[Site "Rio de Janeiro"]
[Date "2024.04.28"]
[Round "8.2"]
[White "De Albuquerque, Ian Telek C."]
[Black "Matsuura, Everaldo"]
[Result "0-1"]
[ECO "C91"]
[WhiteElo "2134"]
[BlackElo "2380"]
[Annotator "TA"]
[PlyCount "68"]
[EventDate "2024.04.12"]
[EventType "swiss"]
[EventCountry "BRA"]
[SourceTitle "playchess.com"]
[Source "ChessBase"]
[SourceQuality "1"]
[TimeControl "5400+30"]

{[%evp 28,68,-12,-4,0,-13,-8,-31,-19,-8,-10,-43,-52,-98,-100,-304,-302,-304,-266,-267,-263,-266,-258,-300,-291,-421,-323,-342,-277,-481,-480,-483,-464,-517,-435,-511,-526,-533,-525,-778,-717,-5306,-5220]} 1. e4 {[%emt 0:00:05]} e5 {[%emt 0:01:04]} 2. Nf3 {[%emt 0:00:59]} Nc6 {[%emt 0:00:17]} 3. Bb5 {[%emt 0:01:15][%cal Bf1b5,Bb5a4,Ba4b3][%mdl 32]} a6 {[%emt 0:00:55]} 4. Ba4 {[%emt 0:00:03]} Nf6 {[%emt 0:00:42]} 5. O-O {[%emt 0:01:17]} Be7 {[%emt 0:02:26]} 6. Re1 {[%emt 0:01:00]} b5 {[%emt 0:01:06]} 7. Bb3 {[%emt 0:00:03]} O-O {[%emt 0:00:59]} 8. d4 {[%emt 0:02:03]} d6 {[%emt 0:00:48]} 9. c3 {[%emt 0:00:20]} Bg4 {[%emt 0:00:53]} 10. Be3 {[%emt 0:01:01]} Na5 {[%emt 0:00:52]} 11. Bc2 {[%emt 0:05:20]} exd4 {[%emt 0:01:16]} 12. cxd4 {[%emt 0:00:54]} c5 {[%emt 0:01:15]} 13. Nbd2 {[%emt 0:28:53]} cxd4 {[%emt 0:06:08]} 14. Bxd4 {[%emt 0:01:55]} Nc6 {[%emt 0:00:10]} 15. Be3 {[%emt 0:03:00]} d5 {[%emt 0:02:07]} 16. h3 {[%emt 0:17:23]} Bh5 {[%emt 0:14:38]} 17. Qe2 {[%emt 0:03:36]} Bb4 {[%emt 0:33:56] Black is slightly better.} 18. exd5 {[%emt 0:04:19]} (18. g4 {looks sharper.} Bg6 19. exd5 Nxd5 20. Bxg6 hxg6 21. a3) 18... Nxd5 {[%emt 0:02:43]} 19. a3 {[%emt 0:13:13]} Bxf3 {[%emt 0:09:12]} 20. Qxf3 {[%emt 0:07:08]} (20. Qd3 $15 Nf6 21. Qxd8 (21. gxf3 Qxd3 22. Bxd3 Bxd2 $17) (21. axb4 Nxb4 22. Qxd8 Rfxd8 $17) 21... Rfxd8 22. axb4 Nxb4 23. Bf5) 20... Nxe3 $17 {[%emt 0:00:23]} 21. Qxe3 {[%emt 0:00:15]} (21. fxe3 $17 {only move.} Bxd2 22. Re2) 21... Bxd2 $19 {[%emt 0:03:33]} 22. Qe4 {[%emt 0:00:17][%csl Gc2][%cal Re4h7] [#]} f5 {[%emt 0:04:17]} 23. Qxc6 {[%emt 0:00:33]} Bxe1 {[%emt 0:00:37]} 24. Rxe1 {[%emt 0:00:21]} Qf6 {[%emt 0:01:01]} 25. Qd5+ {[%emt 0:01:56]} Kh8 {[%emt 0:00:20]} 26. Qe5 {[%emt 0:00:52]} (26. Qb3 $142) 26... Qxe5 {[%emt 0:00:38]} 27. Rxe5 {[%emt 0:00:01][%mdl 4096] Endgame. KRR-KRB} g6 {[%emt 0:00:48]} 28. a4 $2 {[%emt 0:01:18]} (28. Kf1) 28... Rfe8 {[%emt 0:00:45] Black is clearly winning.} 29. Rxe8+ {[%emt 0:00:14]} Rxe8 {[%emt 0:00:12]} 30. axb5 {[%emt 0:00:02]} axb5 {[%emt 0:00:23] KR-KB} 31. Bd3 {[%emt 0:00:15]} Re1+ {[%emt 0:00:55]} 32. Kh2 {[%emt 0:00:33]} b4 {[%emt 0:00:12]} 33. b3 {[%emt 0:00:10]} Rc1 {[%emt 0:02:27] [#] ...Rc3 is the strong threat.} 34. f3 {[%emt 0:01:16]} Rc3 {[%emt 0:00:20][%csl LRb3,LRd3] Black took control after the opening.   Weighted Error Value: White=0.86/Black=0.16 (very precise) .  Loses game:     	White=1     	---        Mistake:       	White=3     	---        Inaccurate:     	White=3     	---        OK:         	White=5     	Black=5      Best:        	White=1     	Black=5} 0-1

[Event "3rd Rio Open 2024"]
[Site "Rio de Janeiro"]
[Date "2024.04.28"]
[Round "8.3"]
[White "Marra, Eduardo da Costa"]
[Black "Labussiere, Yago"]
[Result "1/2-1/2"]
[ECO "B61"]
[WhiteElo "2184"]
[BlackElo "2184"]
[Annotator "TA"]
[PlyCount "48"]
[EventDate "2024.04.12"]
[EventType "swiss"]
[EventCountry "BRA"]
[SourceTitle "playchess.com"]
[Source "ChessBase"]
[SourceQuality "1"]
[TimeControl "5400+30"]

{[%evp 12,48,52,35,52,45,63,65,62,50,58,67,67,0,0,-22,-30,-25,0,-8,0,-14,-8,-34,-27,-20,-16,-19,-5,-2,10,0,24,20,25,0,0,-16,-19]} 1. e4 {[%emt 0:00:14]} c5 {[%emt 0:00:09]} 2. Nf3 {[%emt 0:00:09]} d6 {[%emt 0:00:29]} 3. d4 {[%emt 0:00:07]} cxd4 {[%emt 0:00:07]} 4. Nxd4 {[%emt 0:00:03]} Nf6 {[%emt 0:00:08]} 5. Nc3 {[%emt 0:00:15]} Nc6 {[%emt 0:00:12]} 6. Bg5 {[%emt 0:01:27]} Bd7 {[%emt 0:00:13]} 7. Qd2 {[%emt 0:00:44]} h6 {[%emt 0:00:08]} 8. Bxf6 {[%emt 0:04:27]} gxf6 {[%emt 0:00:39]} 9. O-O-O {[%emt 0:05:31] White is more active.} Nxd4 {[%emt 0:00:23] White is slightly better.} 10. Qxd4 {[%emt 0:00:04]} Qa5 {[%emt 0:00:06]} 11. Kb1 {[%emt 0:05:34]} Rc8 {[%emt 0:00:23]} 12. Bc4 {[%emt 0:10:10]} ({Better is} 12. f4 $1 $14) 12... Qc5 {[%emt 0:02:15]} 13. Bb3 {[%emt 0:03:15]} Qxd4 {[%emt 0:17:35]} 14. Rxd4 {[%emt 0:00:03]} e6 {[%emt 0:08:06]} 15. Rd3 {[%emt 0:08:58]} a6 {[%emt 0:03:56]} 16. f4 {[%emt 0:01:38][%cal Bf2f4,Bf4f5][%mdl 32]} Rg8 {[%emt 0:02:52]} 17. Rg3 {[%emt 0:02:19]} Rxg3 {[%emt 0:01:28]} 18. hxg3 {[%emt 0:00:03]} Bc6 {[%emt 0:00:37]} 19. f5 {[%emt 0:11:37]} Ke7 {[%emt 0:03:23]} 20. Rh4 {[%emt 0:03:49]} Bg7 {[%emt 0:03:59]} 21. Ne2 {[%emt 0:04:30]} Rg8 {[%emt 0:04:19]} 22. Nd4 {[%emt 0:06:01]} Bd7 {[%emt 0:00:29]} 23. fxe6 {[%emt 0:02:23]} fxe6 {[%emt 0:15:26]} 24. a3 {[%emt 0:29:09]} Rc8 {[%emt 0:30:33] Weighted Error Value: White=0.13 (very precise) /Black=0.08 (flawless) .  Mistake:       	White=1     	---        Inaccurate:     	White=1     	---        OK:         	White=5     	Black=5} 1/2-1/2

[Event "3rd Rio Open 2024"]
[Site "Rio de Janeiro"]
[Date "2024.04.28"]
[Round "8.4"]
[White "Librelato, Kathie Goulart"]
[Black "Piccoli, Lucas Fonseca"]
[Result "1-0"]
[ECO "B15"]
[WhiteElo "2165"]
[BlackElo "2274"]
[Annotator "TA"]
[PlyCount "109"]
[EventDate "2024.04.12"]
[EventType "swiss"]
[EventCountry "BRA"]
[SourceTitle "playchess.com"]
[Source "ChessBase"]
[SourceQuality "1"]
[TimeControl "5400+30"]

{[%evp 9,109,14,24,20,33,0,0,0,0,0,-7,-23,-25,-22,-13,-30,-33,-28,-34,-30,-29,-26,-4,-50,-15,-58,-19,-29,-47,-56,-53,-62,-53,-70,-77,-81,-77,-88,-81,-89,-81,-79,-82,-84,-79,-70,-68,-85,-84,-91,-64,-102,-96,-98,-79,-111,-79,-83,-71,-71,-80,-66,-6,-70,-62,-63,11,18,145,155,148,189,252,259,247,260,348,332,29960,29963,6095,5942,6107,5488,5748,2266,6216,6065,1728,1454,29987,29988,29990,29991,29991,29991,29994,29994,29994,29995,29995,1202]} 1. e4 {[%emt 0:00:20]} c6 {[%emt 0:00:09]} 2. d4 {[%emt 0:00:08]} d5 {[%emt 0:00:07]} 3. Nc3 {[%emt 0:00:07]} dxe4 {[%emt 0:00:07]} 4. Nxe4 {[%emt 0:00:05]} Nf6 {[%emt 0:00:08]} 5. Qd3 {[%emt 0:00:19]} Nxe4 {[%emt 0:07:41]} 6. Qxe4 {[%emt 0:00:06]} Be6 {[%emt 0:00:07] Prevents Bc4.} 7. Nf3 {[%emt 0:06:52]} Bd5 {[%emt 0:02:10]} 8. Qd3 {[%emt 0:00:30] The position is equal.} Bxf3 {[%emt 0:00:29]} 9. gxf3 {[%emt 0:00:13]} Nd7 {[%emt 0:04:27]} 10. Be3 {[%emt 0:02:44]} g6 {[%emt 0:07:21]} 11. O-O-O {[%emt 0:05:18]} Nf6 {[%emt 0:18:04]} 12. Kb1 {[%emt 0:06:28]} Bg7 {[%emt 0:55:40]} 13. Be2 {[%emt 1:13:50]} O-O {[%emt 0:00:00]} 14. h4 {[%emt 0:00:00]} h5 {[%emt 0:00:00]} 15. Rhg1 {[%emt 0:00:00]} b5 {[%emt 0:01:30]} 16. Rg3 {[%emt 0:00:00]} (16. Bg5 $11 {might be stronger.}) 16... Qd6 {[%emt 0:00:00]} (16... e6 $5) 17. Rdg1 {[%emt 0:00:00]} Nd5 {[%emt 0:00:00]} (17... e6 $5) 18. f4 {[%emt 0:00:00]} Nxf4 {[%emt 0:00:00]} 19. Bxf4 {[%emt 0:00:00]} Qxf4 {[%emt 0:00:00]} 20. Bxh5 {[%emt 0:00:00]} Qxd4 {[%emt 0:00:00]} (20... Qxf2 21. c3 (21. Bxg6 fxg6 22. Rxg6 Rf7 $17) 21... b4 22. Bxg6 (22. cxb4 Qxd4 23. Qxd4 Bxd4 $17) 22... fxg6 23. Rxg6 $11 (23. cxb4 $2 Qxd4 24. Qxd4 Bxd4 $19) (23. Qxg6 Rf7 $17)) 21. Qxd4 {[%emt 0:00:00]} Bxd4 {[%emt 0:00:00]} 22. R3g2 {[%emt 0:00:00]} Bf6 {[%emt 0:00:00]} 23. Rh1 {[%emt 0:05:00]} Kg7 {[%emt 0:00:00]} 24. Bf3 {[%emt 0:00:00][%cal Oh4h5]} Rac8 {[%emt 0:00:00]} 25. h5 {[%emt 0:00:00]} Rh8 {[%emt 0:00:00]} 26. Be4 {[%emt 0:00:00]} g5 {[%emt 0:05:30]} 27. f4 {[%emt 0:00:00]} Kh6 {[%emt 0:00:00]} 28. fxg5+ {[%emt 0:00:00]} Bxg5 {[%emt 0:00:00]} 29. c3 {[%emt 0:00:00]} e6 {[%emt 0:00:00]} 30. Bf3 {[%emt 0:03:30]} c5 {[%emt 0:00:00]} 31. Rd1 {[%emt 0:00:00]} Rcd8 {[%emt 0:00:00] Prevents Rd7.} 32. Rgg1 {[%emt 0:00:00]} Bf4 {[%emt 0:00:00]} 33. Kc2 {[%emt 0:00:00]} Bh2 {[%emt 0:00:00]} 34. Rh1 {[%emt 0:00:00] [#] Rxd8 would now be deadly.} Bg3 {[%emt 0:00:00]} 35. Rhg1 {[%emt 0:02:30]} Bd6 {[%emt 0:00:00]} (35... Bh4 $15) 36. Rd3 {[%emt 0:00:00]} (36. Be2 $11) 36... Be7 $15 {[%emt 0:03:20]} 37. Rgd1 {[%emt 0:00:00]} Kg5 {[%emt 0:00:56]} (37... Rxd3 $15 38. Rxd3 Rd8 39. Rxd8 Bxd8) 38. Rd7 $11 {[%emt 0:00:00]} Rde8 {[%emt 0:01:03] White stays focused until the end.} ({Reject} 38... Rxd7 39. Rxd7 Kf6 40. Rxa7 $14) (38... Kf6 $11) 39. Rxa7 $16 {[%emt 0:00:00] Threatens to win with Bc6. White is much more active.} Kf6 {[%emt 0:00:39]} 40. Bc6 {[%emt 0:00:00]} Rc8 {[%emt 0:00:29]} (40... Rb8 $142 41. Rf1+ Ke5 42. Rxe7 Kd6 43. Rfxf7 (43. Rexf7 Kxc6 44. R7f6 Rxh5 $14) 43... Kxc6 44. Rxe6+ Kd5) 41. Rf1+ $18 {[%emt 0:00:00]} (41. Bxb5 Rxh5 42. a4 Bd8 $18) 41... Ke5 {[%emt 0:00:09]} 42. Bxb5 {[%emt 0:00:00]} Bg5 {[%emt 0:00:29]} 43. Raxf7 {[%emt 0:00:00] Re1+ would kill now.} c4 $2 {[%emt 0:00:44]} (43... Bh4 $18 44. Be2 Rhg8) 44. Re1+ {[%emt 0:00:59]} Kd5 {[%emt 0:00:15]} 45. Rd7+ {[%emt 0:00:05]} Kc5 {[%emt 0:00:54]} 46. Re5+ {[%emt 0:00:08]} Kb6 {[%emt 0:00:01]} 47. Rxg5 {[%emt 0:00:18]} (47. Rxe6+ $142 Kc5 48. Re5+ Kb6 49. Rxg5) 47... Rhf8 {[%emt 0:00:10]} 48. a4 {[%emt 0:00:28][%cal Ba2a4,Ba4a5][%mdl 32]} Rf2+ {[%emt 0:00:59]} 49. Rd2 {[%emt 0:00:15]} Rf1 {[%emt 0:00:30] [#]} 50. a5+ $1 {[%emt 0:00:16] White mates.} Ka7 {[%emt 0:00:27]} (50... Kxa5 51. Bd7+) 51. Rd7+ {[%emt 0:00:25]} Kb8 {[%emt 0:00:02]} 52. a6 {[%emt 0:00:40]} Ra1 {[%emt 0:00:36]} 53. Rgg7 {[%emt 0:00:40]} Rf8 {[%emt 0:01:03]} 54. Rb7+ {[%emt 0:00:56]} Kc8 {[%emt 0:00:19]} 55. Bd7+ {[%emt 0:00:23] Weighted Error Value: White=0.12 (very precise) /Black=0.57.  Mistake:       	White=2     	Black=5      Inaccurate:     	White=4     	Black=3      OK:         	White=15    	Black=12     Best:        	White=2     	Black=2} (55. Bxc4 $142 Rd1 56. Kxd1 (56. Bxe6+ Rd7 57. Rgxd7 Re8 58. Rdc7+ Kd8 59. Rc8#) 56... Re8 57. Rgc7+ (57. Bxe6+ Rxe6 58. Rg8+ Re8 59. Rxe8#) 57... Kd8 58. a7 Rh8 59. a8=Q#) 1-0

[Event "3rd Rio Open 2024"]
[Site "Rio de Janeiro"]
[Date "2024.04.28"]
[Round "8.5"]
[White "Jorge, Denrick Cabral Jose"]
[Black "De Siqueira, Luigy Lira"]
[Result "0-1"]
[ECO "C56"]
[WhiteElo "1909"]
[BlackElo "2274"]
[Annotator "TA"]
[PlyCount "81"]
[EventDate "2024.04.12"]
[EventType "swiss"]
[EventCountry "BRA"]
[SourceTitle "playchess.com"]
[Source "ChessBase"]
[SourceQuality "1"]
[TimeControl "5400+30"]

{[%evp 13,81,-6,-2,-26,-25,-42,-55,-54,-64,-103,-100,-115,-85,-114,-51,-112,-110,-118,-125,-131,-122,-104,-99,-102,-101,-104,-110,-123,-133,-121,-77,-85,-72,-142,-145,-177,-133,-191,-181,-237,-236,-222,-242,-244,-245,-272,-160,-159,-162,-312,-289,-322,-336,-327,-306,-366,-363,-360,-350,-356,-343,-383,-382,-367,-358,-518,-510,-510,-495,-509]} 1. e4 {[%emt 0:17:28]} e5 {[%emt 0:00:19]} 2. Nf3 {[%emt 0:00:07]} Nc6 {[%emt 0:00:23]} 3. d4 {[%emt 0:00:16]} exd4 {[%emt 0:00:27]} 4. Bc4 {[%emt 0:00:09]} Nf6 {[%emt 0:00:14]} 5. e5 {[%emt 0:00:13]} d5 {[%emt 0:01:02]} 6. Bb5 {[%emt 0:00:10]} Nd7 {[%emt 0:00:07]} 7. O-O {[%emt 0:02:24]} Be7 {[%emt 1:31:28]} 8. c3 {[%emt 0:07:08]} dxc3 {[%emt 0:00:00]} 9. Nxc3 {[%emt 0:03:30]} a6 {[%emt 0:00:00]} 10. Ba4 {[%emt 1:04:05] Black is slightly better.} Nb6 {[%emt 0:00:00]} 11. Bb3 {[%emt 0:00:00][%cal Oc1e3]} Be6 {[%emt 0:00:00]} 12. a3 {[%emt 0:00:00]} O-O {[%emt 0:00:00]} 13. Qd3 {[%emt 0:00:00]} d4 {[%emt 0:00:00]} ({Black should play} 13... Qd7 $17 14. h3 d4) 14. Bxe6 {[%emt 0:00:00]} (14. Ne2 $1 $15) 14... dxc3 $17 {[%emt 0:00:00]} 15. Bf5 {[%emt 0:00:00]} Qxd3 {[%emt 0:00:00]} 16. Bxd3 {[%emt 0:00:00]} cxb2 {[%emt 0:00:00]} 17. Bxb2 {[%emt 0:00:00]} Na4 {[%emt 0:00:00]} 18. Bc1 {[%emt 0:00:00]} Nc5 {[%emt 0:05:30]} 19. Bc2 {[%emt 0:00:00]} Rad8 $36 {[%emt 0:00:00][%mdl 2048] Black is on the roll.} 20. Bb2 {[%emt 0:00:00]} Nd3 {[%emt 0:00:00]} 21. Bc3 {[%emt 0:00:00]} Nf4 {[%emt 0:01:30] Black is more active. A dynamic duo of knights.} 22. Rfe1 {[%emt 0:00:00] Repels Ne2+} Bc5 {[%emt 0:00:00]} 23. Ng5 {[%emt 0:00:00]} (23. Be4 $142) 23... h6 {[%emt 0:00:00]} 24. Ne4 {[%emt 0:00:00]} Bb6 {[%emt 0:00:00]} 25. Ba4 {[%emt 0:00:00]} (25. Kf1 $17 {was necessary.}) 25... Nd3 $19 {[%emt 0:00:00][%csl LRe1,LRe5]} 26. Bxc6 {[%emt 0:00:00]} (26. Red1 $142) 26... Nxe1 {[%emt 0:00:00]} ({Resist} 26... bxc6 27. Re2) 27. Bxb7 {[%emt 0:00:00]} Nc2 {[%emt 0:00:00]} 28. Rc1 {[%emt 0:00:00] [#]} a5 $1 {[%emt 0:00:00]} 29. a4 {[%emt 0:00:00]} (29. Bc6 Nd4) 29... Nd4 {[%emt 0:00:00]} (29... Rfe8 $19 {White must now prevent ...Nb4.} 30. Ba6 Nd4) 30. Kf1 $17 {[%emt 0:00:00]} Rfe8 {[%emt 0:00:00]} 31. Nd2 {[%emt 0:00:00]} (31. f4 $142) 31... Rxe5 $19 {[%emt 0:05:00][%cal Od4e2] aiming for ...Ne2!} 32. Bxd4 {[%emt 0:00:36]} Bxd4 {[%emt 0:00:00]} ({Don't take} 32... Rxd4 33. Nf3 Ree4 34. Bxe4 Rxe4 35. Ra1) 33. Rxc7 {[%emt 0:00:49]} Bc5 {[%emt 0:00:00]} 34. Rc8 {[%emt 0:01:23]} Rxc8 {[%emt 0:00:00]} 35. Bxc8 {[%emt 0:00:03][%mdl 4096] Endgame. KRB-KBN} Bb4 {[%emt 0:00:00]} 36. Nf3 {[%emt 0:00:32]} Rc5 {[%emt 0:00:00]} 37. Bd7 {[%emt 0:01:18]} Rc1+ {[%emt 0:00:00]} 38. Ke2 {[%emt 0:00:08]} Rc2+ {[%emt 0:00:00]} 39. Kd3 {[%emt 0:02:04]} (39. Ke3 $142) 39... Rxf2 {[%emt 0:00:00]} 40. Bh3 {[%emt 0:01:09]} Ra2 {[%emt 0:00:00]} 41. g3 {[%emt 0:07:28] Weighted Error Value: White=0.29 (precise) /Black=0.11 (very precise) .  Mistake:       	White=6     	Black=2      Inaccurate:     	White=2     	Black=1      OK:         	White=7     	Black=20     Best:        	White=3     	Black=2} 0-1

[Event "3rd Rio Open 2024"]
[Site "Rio de Janeiro"]
[Date "2024.04.28"]
[Round "8.6"]
[White "Terao, Juliana Sayumi"]
[Black "Mobaier, Sergio"]
[Result "1-0"]
[ECO "B50"]
[WhiteElo "2179"]
[BlackElo "1881"]
[Annotator "TA"]
[PlyCount "69"]
[EventDate "2024.04.12"]
[EventType "swiss"]
[EventCountry "BRA"]
[SourceTitle "playchess.com"]
[Source "ChessBase"]
[SourceQuality "1"]
[TimeControl "5400+30"]

{[%evp 12,69,9,20,22,3,52,44,69,61,79,70,62,56,72,62,186,120,101,121,125,110,216,104,404,133,158,71,222,102,104,102,127,112,187,109,127,83,83,65,83,83,83,83,92,83,83,64,83,35,83,83,204,204,394,353,712,722,1087,1067]} 1. e4 {[%emt 0:00:04]} c5 {[%emt 0:00:07]} 2. Nf3 {[%emt 0:00:05]} e6 {[%emt 0:00:08]} 3. b3 {[%emt 1:31:51]} d6 {[%emt 0:01:28]} 4. Bb2 {[%emt 0:00:00]} Nf6 {[%emt 0:00:06]} 5. e5 {[%emt 0:00:00]} dxe5 {[%emt 0:00:06]} 6. Nxe5 {[%emt 0:00:00]} Be7 {[%emt 0:00:23]} 7. Bd3 {[%emt 0:00:00]} Nbd7 {[%emt 0:01:42]} 8. f4 {[%emt 0:00:00]} Qc7 {[%emt 0:01:45]} (8... O-O $11) 9. O-O {[%emt 0:00:00]} b6 {[%emt 0:08:58] White is slightly better.} 10. a4 {[%emt 0:00:00]} Bb7 {[%emt 0:03:46]} 11. Na3 {[%emt 0:00:00]} a6 {[%emt 0:12:18]} 12. Qe2 {[%emt 0:00:00]} O-O {[%emt 0:02:12]} 13. Rae1 {[%emt 0:05:00]} Nb8 {[%emt 0:06:34]} ({Black should try} 13... Nxe5 $14 14. Bxe5 Qd8) 14. Qe3 {[%emt 0:00:00]} (14. f5 $18) 14... Nc6 $16 {[%emt 0:04:04]} 15. Nxc6 {[%emt 0:00:00]} Qxc6 {[%emt 0:01:19]} 16. Qh3 {[%emt 0:00:00] Bxf6 is the strong threat. Active counter play!} g6 {[%emt 0:10:21]} (16... Rad8 $16) 17. Nc4 {[%emt 0:00:00]} (17. Re3 $18 {and White stays clearly on top.}) 17... Rad8 $2 {[%emt 0:05:10][%mdl 8192]} (17... b5 $16 {keeps fighting.}) 18. Ne5 $2 {[%emt 0:00:00]} (18. f5 $1 $18 {[%cal Rf5g6] is the precise move to win.}) 18... Qc7 {[%emt 0:39:03] [#]} 19. Re3 {[%emt 0:00:00]} (19. Re2 $142 $1) 19... Rd4 $2 {[%emt 0:00:30] [#]} 20. Bxd4 {[%emt 0:00:00]} (20. Qh6 $1 $18) 20... cxd4 {[%emt 0:00:00]} 21. Re2 Kg7 {[%emt 0:01:00]} 22. g4 {[%emt 0:00:00]} h5 (22... Bd6 $16 {was necessary.}) 23. g5 {[%emt 0:05:00]} ({White should play} 23. gxh5 $18 {[%cal Of4f5] Strongly threatening f5!} Rh8 24. Nxf7 Kxf7 25. Qxe6+ (25. Bxg6+ Kg7 $14) 25... Kf8 26. hxg6 (26. Bxg6 Bd8 $16)) 23... Nd5 {[%emt 0:00:00][%cal Bf6d5,Bd5e7,Be7f5][%mdl 32]} 24. Qg3 {[%cal Oe5g6] Black must now prevent Nxg6!} Bd6 {[%emt 0:00:00]} 25. h4 Ne7 {[%emt 0:02:00]} 26. Nc4 {[%emt 0:01:30]} Bc5 {[%emt 0:00:30]} 27. Kh2 {[%emt 0:00:00]} Nf5 28. Qf2 {[%emt 0:01:00]} Rd8 {[%emt 0:01:00]} 29. Rfe1 {[%emt 0:00:30]} a5 {[%emt 0:00:30]} 30. Ne5 {[%emt 0:00:30]} (30. Kh3 $16) 30... Bd5 {[%emt 0:00:00]} (30... Ba6 $1 $14) 31. Kh3 {[%emt 0:00:00]} Bd6 (31... Kg8 $16) 32. Bxf5 $18 {[%emt 0:00:00]} exf5 {[%emt 0:00:17]} (32... Bxe5 33. Rxe5 gxf5) 33. Qxd4 {[%emt 0:00:00]} Bc5 $2 {[%emt 0:00:42]} (33... Qc5 34. Qxc5 bxc5) 34. Qc3 {[%emt 0:00:00] Intending Nd7+ and mate.} Bd6 35. Nc6+ {[%emt 0:02:30] Weighted Error Value: White=0.35/Black=0.56.  Loses game:     	---       	Black=1      Missed win:     	White=1     	---        Mistake:       	White=6     	Black=9      Inaccurate:     	White=1     	Black=1      OK:         	White=6     	Black=7      Best:        	White=3     	Black=2} 1-0